bitfinex-derivatives/quotes_ETHF0:USTF0_20260123
["timestamp","ask_amount","ask_price","bid_price","bid_amount"]
[1769211598850,1.03837334,2956.6,2955.1,0.14629542]
[1769211599052,1.20124432,2956.5,2955.1,0.14629542]
[1769211599250,1.20124432,2956.4,2955.1,0.14629542]
[1769211599546,0.3069632,2956.3,2955.1,0.14629542]
[1769211599748,1.03837334,2956.6,2955.1,0.14629542]
[1769211599949,1.20125388,2956.5,2955.1,0.14629542]
[1769211600148,1.20125388,2956.4,2955.1,0.14629542]
[1769211600349,0.30696566,2956.3,2955.1,0.14629542]
[1769211600554,1.03837334,2956.6,2955.1,0.14629542]
[1769211600745,1.20124526,2956.5,2955.1,0.14629542]
[1769211600945,1.20124526,2956.4,2955.1,0.14629542]
[1769211601142,0.30696349,2956.3,2955.0,0.16941]
[1769211601349,0.88963623,2956.1,2954.7,3.04622362]
[1769211601545,0.88963623,2956.1,2954.5,0.31573542]
[1769211601546,0.30696349,2956.0,2954.6,3.04622362]
[1769211601744,0.30696349,2955.9,2954.5,0.31573542]
[1769211601948,1.20098789,2955.8,2954.5,0.31573542]
[1769211602148,0.30696349,2955.7,2954.5,0.31573542]
[1769211602348,0.14950469,2955.9,2954.5,0.31573542]
[1769211602548,1.20044472,2955.8,2954.5,0.31573542]
[1769211602750,0.30677183,2955.7,2954.5,0.31573542]
[1769211602944,0.00507468,2955.5,2954.5,0.31573542]
[1769211604748,0.00507468,2955.5,2954.3,0.00338747]
[1769211610056,0.14742603,2955.5,2954.3,0.00338747]
[1769211618971,1.03198758,2955.3,2953.7,0.14316728]
[1769211620070,1.03198758,2955.3,2953.7,0.14559157]
[1769211623977,0.14235135,2955.2,2953.7,0.14559157]
[1769211628875,0.89040275,2954.8,2953.7,0.14559157]
[1769211629074,0.89478128,2954.8,2953.7,0.14559157]
[1769211641295,0.89040275,2954.6,2953.7,0.00242429]
[1769211647901,0.89478128,2954.8,2953.7,0.00242429]
[1769211650597,0.00437853,2954.8,2954.1,0.89040275]
[1769211650904,0.00437853,2954.8,2954.1,1.02828336]
[1769211651400,0.89547743,2955.5,2954.2,0.13788061]
[1769211651602,1.20244367,2955.4,2954.2,0.13788061]
[1769211651801,1.20244367,2955.3,2954.2,0.13788061]
[1769211652002,1.20244367,2955.2,2954.2,0.13788061]
[1769211652197,0.89547743,2955.5,2954.2,0.13788061]
[1769211652397,1.20234404,2955.4,2954.2,0.13788061]
[1769211652597,1.20234404,2955.3,2954.2,0.13788061]
[1769211652798,1.20234404,2955.2,2954.2,0.13788061]
[1769211652999,0.89929935,2955.5,2954.2,0.13788061]
[1769211653298,1.20219175,2955.4,2954.2,0.13788061]
[1769211653502,1.20219175,2955.3,2954.2,0.13788061]
[1769211653704,0.30687199,2955.2,2954.2,0.13788061]
[1769211653905,0.89929935,2955.5,2954.2,0.13788061]
[1769211654204,1.20203709,2955.4,2954.2,0.13788061]
[1769211654405,1.20203709,2955.3,2954.2,0.13788061]
[1769211654599,0.3068248,2955.2,2954.2,0.13788061]
[1769211654798,0.89929935,2955.5,2954.2,0.13788061]
[1769211655000,1.20189364,2955.4,2954.2,0.13788061]
[1769211655200,1.20189364,2955.3,2954.2,0.13788061]
[1769211655402,0.30675866,2955.2,2954.2,0.13788061]
[1769211655699,0.89929935,2955.5,2954.2,0.13788061]
[1769211655899,1.19981607,2955.4,2954.2,0.13788061]
[1769211656116,1.19981607,2955.3,2954.2,0.13788061]
[1769211656409,0.30675844,2955.2,2954.2,0.13788061]
[1769211656609,0.89040275,2955.3,2954.2,0.13788061]
[1769211656811,0.30672892,2955.2,2954.2,0.13788061]
[1769211657109,0.89040275,2955.3,2954.2,0.13788061]
[1769211657301,0.30672085,2955.2,2954.2,0.13788061]
[1769211657500,0.89040275,2955.3,2954.2,0.13788061]
[1769211657703,0.30666835,2955.2,2954.2,0.13788061]
[1769211657902,0.89040275,2955.3,2954.2,0.13788061]
[1769211658107,0.30665987,2955.2,2954.2,0.13788061]
[1769211658307,0.89040275,2955.3,2954.2,0.13788061]
[1769211671211,0.89040275,2955.3,2954.1,0.89040275]
[1769211671716,0.89040275,2955.3,2954.0,0.16947]
[1769211674818,0.89040275,2955.3,2954.0,0.31392077]
[1769211675323,0.30651393,2955.2,2954.0,0.31392077]
[1769211675618,0.89040275,2955.3,2954.0,0.31392077]
[1769211675814,0.30651388,2955.2,2954.0,0.31392077]
[1769211676016,0.89040275,2955.3,2954.0,0.31392077]
[1769211676217,0.30651381,2955.2,2954.0,0.31392077]
[1769211676419,0.89040275,2955.3,2954.0,0.31392077]
[1769211676620,0.30655301,2955.2,2954.0,0.31392077]
[1769211676814,0.89040275,2955.3,2954.0,0.31392077]
[1769211677014,0.30654189,2955.2,2954.0,0.31392077]
[1769211677221,0.89040275,2955.3,2954.0,0.31392077]
[1769211677422,0.3065902,2955.2,2954.0,0.31392077]
[1769211677621,0.89040275,2955.3,2954.0,0.31392077]
[1769211677824,0.3065902,2955.2,2954.0,0.31392077]
[1769211678024,0.89040275,2955.3,2954.0,0.31392077]
[1769211678323,0.30658492,2955.2,2954.0,0.31392077]
[1769211678517,0.89040275,2955.3,2954.0,0.31392077]
[1769211678721,0.30664612,2955.2,2954.0,0.31392077]
[1769211678921,0.89040275,2955.3,2954.0,0.31392077]
[1769211679221,0.30664609,2955.2,2954.0,0.31392077]
[1769211679422,0.89040275,2955.3,2954.0,0.31392077]
[1769211679617,1.19971412,2955.2,2954.0,0.31392077]
[1769211679924,0.89040275,2955.3,2954.0,0.31392077]
[1769211680117,1.1997133,2955.2,2954.0,0.31392077]
[1769211680424,0.30693288,2955.1,2954.0,0.31392077]
[1769211680721,0.89040275,2955.3,2954.0,0.31392077]
[1769211680914,1.20050166,2955.2,2954.0,0.31392077]
[1769211681115,0.30693248,2955.1,2954.2,0.14445077]
[1769211681318,0.89929935,2955.5,2954.2,0.14445077]
[1769211681511,1.20025163,2955.4,2954.2,0.14445077]
[1769211681712,0.30686914,2955.3,2954.2,0.14445077]
[1769211681910,0.89929935,2955.5,2954.2,0.14445077]
[1769211682116,1.20025124,2955.4,2954.2,0.14445077]
[1769211682312,0.89929935,2955.5,2954.2,0.14445077]
[1769211682519,1.20006903,2955.4,2954.2,0.14445077]
[1769211682720,0.89929935,2955.5,2954.2,0.14445077]
[1769211682921,1.20006927,2955.4,2954.2,0.14445077]
[1769211683123,0.89929935,2955.5,2954.2,0.14445077]
[1769211683316,1.20006949,2955.4,2954.2,0.14445077]
[1769211683516,0.89929935,2955.5,2954.2,0.14445077]
[1769211683725,1.19993704,2955.4,2954.2,0.14445077]
[1769211683917,0.89929935,2955.5,2954.2,0.14445077]
[1769211684121,1.19993671,2955.4,2954.2,0.14445077]
[1769211684321,0.89929935,2955.5,2954.2,0.14445077]
[1769211684522,1.19981459,2955.4,2954.2,0.14445077]
[1769211684725,0.89929935,2955.5,2954.2,0.14445077]
[1769211684926,0.30675905,2955.4,2954.2,0.14445077]
[1769211685126,0.89929935,2955.5,2954.2,0.14445077]
[1769211685327,0.30674038,2955.4,2954.2,0.14445077]
[1769211685527,0.89929935,2955.5,2954.2,0.14445077]
[1769211685730,0.30673717,2955.4,2954.2,0.14445077]
[1769211686030,0.89929935,2955.5,2954.2,0.14445077]
[1769211686231,0.30673871,2955.4,2954.2,0.14445077]
[1769211686429,0.89929935,2955.5,2954.2,0.14445077]
[1769211686629,0.30671998,2955.4,2954.2,0.14445077]
[1769211686834,0.89929935,2955.5,2954.2,0.14445077]
[1769211687129,0.30671961,2955.4,2954.2,0.14445077]
[1769211687329,0.89929935,2955.5,2954.2,0.14445077]
[1769211687530,0.30670469,2955.4,2954.2,0.14445077]
[1769211687728,0.89929935,2955.5,2954.2,0.14445077]
[1769211687929,0.30670472,2955.4,2954.2,0.14445077]
[1769211688129,0.89929935,2955.5,2954.2,0.14445077]
[1769211688433,0.3067047,2955.4,2954.2,0.14445077]
[1769211688627,0.89929935,2955.5,2954.2,0.14445077]
[1769211688825,0.30669175,2955.4,2954.2,0.14445077]
[1769211689028,0.0088966,2955.5,2954.2,0.14445077]
[1769211689226,0.30669174,2955.4,2954.2,0.14445077]
[1769211689530,0.0088966,2955.5,2954.2,0.14445077]
[1769211689732,0.30668123,2955.4,2954.2,0.14445077]
[1769211689931,0.0088966,2955.5,2954.2,0.14445077]
[1769211690132,0.30668122,2955.4,2954.2,0.14445077]
[1769211690330,0.0088966,2955.5,2954.2,0.14445077]
[1769211690532,0.30667492,2955.4,2954.2,0.14445077]
[1769211690726,0.0088966,2955.5,2954.2,0.14445077]
[1769211690931,0.30667275,2955.4,2954.2,0.14445077]
[1769211691134,0.0088966,2955.5,2954.5,0.14445077]
[1769211691335,0.0088966,2955.5,2954.5,0.31389077]
[1769211691529,0.0088966,2955.5,2954.6,0.14445077]
[1769211692128,0.0088966,2955.5,2954.6,0.31388077]
[1769211692431,0.0088966,2955.5,2954.7,0.14915722]
[1769211698535,1.05565103,2956.3,2954.8,0.14915722]
[1769211698840,1.1969705,2956.2,2954.8,0.14915722]
[1769211699039,0.30600977,2956.1,2954.8,0.31857722]
[1769211699236,0.88631103,2956.3,2954.9,0.14915722]
[1769211699438,0.30600062,2956.2,2954.9,0.14915722]
[1769211699733,0.00388848,2956.2,2954.9,0.14915722]
[1769211707231,0.30597738,2956.1,2954.9,0.14915722]
[1769211707434,0.00388848,2956.2,2954.9,0.14915722]
[1769211707733,0.30597737,2956.1,2954.9,0.14915722]
[1769211707934,0.00388848,2956.2,2954.9,0.14915722]
[1769211708133,0.30597698,2956.1,2954.9,0.14915722]
[1769211708435,0.00388848,2956.2,2954.9,0.14915722]
[1769211708636,0.30601235,2956.1,2954.9,0.14915722]
[1769211708837,0.00388848,2956.2,2954.9,0.14915722]
[1769211709045,0.3060124,2956.1,2954.9,0.14915722]
[1769211709234,0.00388848,2956.2,2954.9,0.14915722]
[1769211709435,0.30605682,2956.1,2954.9,0.14915722]
[1769211709643,0.00388848,2956.2,2954.9,0.14915722]
[1769211709834,0.3060512,2956.1,2954.9,0.14915722]
[1769211710039,0.00388848,2956.2,2954.9,0.14915722]
[1769211710239,1.19729408,2956.1,2954.9,0.14915722]
[1769211710444,0.00388848,2956.2,2954.9,0.14915722]
[1769211710741,0.30610591,2956.1,2954.9,0.14915722]
[1769211710937,0.00388848,2956.2,2954.9,0.14915722]
[1769211711138,0.30610434,2956.1,2954.9,0.14915722]
[1769211711442,0.00388848,2956.2,2954.9,0.14915722]
[1769211711644,0.30612451,2956.1,2954.9,0.14915722]
[1769211711846,0.00388848,2956.2,2954.9,0.14915722]
[1769211712142,0.30611406,2956.1,2954.9,0.14915722]
[1769211712332,0.00388848,2956.2,2954.9,0.14915722]
[1769211712532,0.3061397,2956.1,2954.9,0.14915722]
[1769211712734,0.00388848,2956.2,2954.9,0.14915722]
[1769211712940,0.30614043,2956.1,2954.9,0.14915722]
[1769211713141,0.00388848,2956.2,2954.9,0.14915722]
[1769211713342,0.30617169,2956.1,2954.9,0.14915722]
[1769211713643,0.00388848,2956.2,2954.9,0.14915722]
[1769211713843,0.30617168,2956.1,2954.9,0.14915722]
[1769211714147,0.00388848,2956.2,2954.9,0.14915722]
[1769211714344,1.19775728,2956.1,2954.9,0.14915722]
[1769211714544,0.00388848,2956.2,2954.9,0.14915722]
[1769211714840,1.19775716,2956.1,2954.9,0.14915722]
[1769211715037,0.00388848,2956.2,2954.9,0.14915722]
[1769211715237,1.19775708,2956.1,2954.9,0.14915722]
[1769211715438,0.00388848,2956.2,2954.9,0.14915722]
[1769211715639,1.19793304,2956.1,2954.9,0.14915722]
[1769211715846,0.00388848,2956.2,2954.9,0.14915722]
[1769211716044,1.19814268,2956.1,2954.9,0.14915722]
[1769211716244,0.00388848,2956.2,2954.9,0.14915722]
[1769211716444,1.19835618,2956.1,2954.9,0.14915722]
[1769211716646,0.00388848,2956.2,2954.9,0.14915722]
[1769211716943,1.19835611,2956.1,2954.9,0.14915722]
[1769211717242,0.30637571,2956.0,2954.9,0.14915722]
[1769211717450,0.00388848,2956.2,2954.9,0.14915722]
[1769211717645,1.1985729,2956.1,2954.9,0.14915722]
[1769211717945,0.30636448,2956.0,2954.9,0.14915722]
[1769211718147,0.00388848,2956.2,2954.9,0.14915722]
[1769211718346,1.19865593,2956.1,2954.9,0.14915722]
[1769211718548,0.30644861,2956.0,2954.9,0.14915722]
[1769211718749,0.00388848,2956.2,2954.9,0.14915722]
[1769211719051,1.19890184,2956.1,2954.9,0.14915722]
[1769211719246,1.19923981,2956.0,2954.9,0.14915722]
[1769211719549,0.00388848,2956.2,2955.0,0.14915722]
[1769211719751,1.19940878,2956.1,2955.0,0.14915722]
[1769211720047,0.00388848,2956.2,2955.0,0.14915722]
[1769211720249,1.1994128,2956.1,2955.0,0.14915722]
[1769211720448,0.30657872,2956.0,2955.1,0.14915722]
[1769211720646,0.00388848,2956.2,2955.2,0.14915722]
[1769211720846,0.00388848,2956.2,2955.4,0.14915722]
[1769211734761,6.423,2956.5,2955.4,0.14915722]
[1769211735775,6.42685359,2956.5,2955.4,0.14915722]
[1769211737772,6.42685359,2956.5,2955.3,0.17446468]
[1769211748885,0.8895146,2956.4,2955.3,0.17446468]
[1769211754778,0.8895146,2956.0,2955.3,0.17446468]
[1769211754982,0.8895146,2956.0,2955.3,0.00507468]
[1769211763196,0.8895146,2955.8,2955.3,0.00507468]
[1769211763398,0.8895146,2955.8,2954.8,3.21564362]
[1769211764197,0.8895146,2955.8,2954.8,0.16942]
[1769211774203,0.8895146,2955.8,2954.8,0.32074737]
[1769211775304,0.8895146,2955.4,2954.6,3.04622362]
[1769211775502,0.8895146,2955.8,2954.6,0.15132737]
[1769211776097,6.73853294,2956.2,2954.9,0.15132737]
[1769211776098,0.8895146,2956.2,2954.9,0.15132737]
[1769211776304,1.19727847,2956.1,2954.9,0.15132737]
[1769211776501,0.30607082,2956.0,2954.9,0.15132737]
[1769211776703,0.8895146,2956.2,2954.9,0.15132737]
[1769211776914,1.19717711,2956.1,2954.9,0.15132737]
[1769211777204,1.19557271,2956.0,2954.9,0.15132737]
[1769211777405,0.8895146,2956.0,2954.9,0.15132737]
[1769211785315,0.8895146,2955.8,2954.9,0.15132737]
[1769211785815,0.8895146,2956.0,2954.9,0.15132737]
[1769211786115,0.8895146,2956.2,2954.9,0.15132737]
[1769211786315,0.30617914,2956.1,2955.0,0.14248775]
[1769211786616,0.8895146,2956.2,2955.0,0.14248775]
[1769211786810,0.30619144,2956.1,2955.0,0.14248775]
[1769211787011,0.8895146,2956.2,2955.0,0.14248775]
[1769211787314,0.30620255,2956.1,2955.0,0.14248775]
[1769211787515,0.8895146,2956.2,2955.0,0.14248775]
[1769211787814,0.30621155,2956.1,2955.0,0.14248775]
[1769211788004,0.8895146,2956.2,2955.0,0.14248775]
[1769211788210,0.30623077,2956.1,2955.0,0.14248775]
[1769211788409,0.8895146,2956.2,2955.0,0.14248775]
[1769211788607,0.30623891,2956.1,2955.0,0.14248775]
[1769211788810,0.8895146,2956.2,2955.0,0.14248775]
[1769211789013,0.30623986,2956.1,2955.0,0.14248775]
[1769211789215,0.8895146,2956.2,2955.0,0.14248775]
[1769211789409,0.30626316,2956.1,2955.0,0.14248775]
[1769211789610,0.8895146,2956.2,2955.0,0.14248775]
[1769211789812,0.30627038,2956.1,2955.0,0.14248775]
[1769211790014,0.8895146,2956.2,2955.0,0.14248775]
[1769211790208,0.30629918,2956.1,2955.0,0.14248775]
[1769211790517,0.8895146,2956.4,2955.2,0.14907967]
[1769211790818,1.19820509,2956.3,2955.2,0.14907967]
[1769211791010,0.30631704,2956.2,2955.2,0.14907967]
[1769211791210,0.8895146,2956.4,2955.2,0.14907967]
[1769211791412,1.19833066,2956.3,2955.2,0.14907967]
[1769211791612,0.8895146,2956.4,2955.2,0.14907967]
[1769211792517,0.8895146,2956.2,2955.2,0.14907967]
[1769211795918,0.8895146,2956.2,2955.3,0.14907967]
[1769211806431,0.8895146,2956.4,2955.3,0.14907967]
[1769211810932,0.89230047,2956.5,2955.3,0.14907967]
[1769211820339,0.30648384,2956.4,2955.3,0.14907967]
[1769211820532,0.89230047,2956.5,2955.3,0.14907967]
[1769211820732,0.30648385,2956.4,2955.3,0.14907967]
[1769211820934,0.89230047,2956.5,2955.3,0.14907967]
[1769211821139,0.30647534,2956.4,2955.3,0.14907967]
[1769211821335,0.89230047,2956.5,2955.3,0.14907967]
[1769211821536,0.30650322,2956.4,2955.3,0.14907967]
[1769211821736,0.89230047,2956.5,2955.3,0.14907967]
[1769211821932,0.30649961,2956.4,2955.3,0.14907967]
[1769211822131,0.89230047,2956.5,2955.3,0.14907967]
[1769211822335,0.30649141,2956.4,2955.3,0.14907967]
[1769211822532,0.89230047,2956.5,2955.3,0.14907967]
[1769211822737,0.30649024,2956.4,2955.3,0.14907967]
[1769211823040,0.89230047,2956.5,2955.3,0.14907967]
[1769211823240,0.30649026,2956.4,2955.3,0.14907967]
[1769211823438,0.89230047,2956.5,2955.3,0.14907967]
[1769211823641,0.30649035,2956.4,2955.3,0.14907967]
[1769211823841,0.89230047,2956.5,2955.3,0.14907967]
[1769211824143,0.30649034,2956.4,2955.3,0.14907967]
[1769211824337,0.89230047,2956.5,2955.3,0.14907967]
[1769211824544,0.30649169,2956.4,2955.3,0.14907967]
[1769211824744,0.89230047,2956.5,2955.3,0.14907967]
[1769211824948,0.30649163,2956.4,2955.3,0.14907967]
[1769211825137,0.89230047,2956.5,2955.3,0.14907967]
[1769211825337,0.30649162,2956.4,2955.3,0.14907967]
[1769211825544,0.89230047,2956.5,2955.3,0.14907967]
[1769211825746,0.30649384,2956.4,2955.3,0.14907967]
[1769211825945,0.89230047,2956.5,2955.3,0.14907967]
[1769211826241,0.30649388,2956.4,2955.3,0.14907967]
[1769211826443,0.89230047,2956.5,2955.3,0.14907967]
[1769211826639,0.30649636,2956.4,2955.3,0.14907967]
[1769211826838,0.89230047,2956.5,2955.3,0.14907967]
[1769211827042,0.30649634,2956.4,2955.3,0.14907967]
[1769211827241,0.89230047,2956.5,2955.3,0.14907967]
[1769211827441,0.30649968,2956.4,2955.3,0.14907967]
[1769211827642,0.89230047,2956.5,2955.3,0.14907967]
[1769211827842,0.30649997,2956.4,2955.3,0.14907967]
[1769211828042,0.89230047,2956.5,2955.3,0.14907967]
[1769211828245,0.30650089,2956.4,2955.3,0.14907967]
[1769211828446,0.89230047,2956.5,2955.3,0.14907967]
[1769211828646,0.30650497,2956.4,2955.3,0.14907967]
[1769211828843,1.03721897,2956.4,2955.2,0.16939]
[1769211829040,0.14773389,2956.2,2955.2,0.16939]
[1769211829440,0.14773389,2956.2,2954.9,3.04622362]
[1769211829641,0.3065296,2956.1,2954.8,3.04622362]
[1769211829840,0.14773389,2956.2,2954.8,3.04622362]
[1769211830036,0.14773389,2955.9,2954.8,3.04622362]
[1769211830247,1.19732566,2955.8,2954.4,4.26471306]
[1769211830546,1.19732566,2955.7,2954.3,0.13885083]
[1769211830743,1.19925098,2955.6,2954.3,0.13885083]
[1769211830942,0.14773389,2955.9,2954.3,0.13885083]
[1769211831138,1.1999406,2955.8,2954.3,0.13885083]
[1769211831343,1.1999406,2955.7,2954.3,0.13885083]
[1769211831544,0.14773389,2955.9,2954.3,0.13885083]
[1769211831745,1.19891503,2955.8,2954.3,0.13885083]
[1769211832051,0.30819419,2955.7,2954.3,0.13885083]
[1769211832345,0.14773389,2955.9,2954.3,0.13885083]
[1769211832544,1.19820952,2955.8,2954.3,0.13885083]
[1769211832746,0.14773389,2955.9,2954.3,0.13885083]
[1769211833050,1.19815646,2955.8,2954.3,0.13885083]
[1769211833248,0.14773389,2955.9,2954.3,0.13885083]
[1769211833458,1.19731471,2955.8,2954.3,0.13885083]
[1769211833645,1.19731471,2955.7,2954.3,0.13885083]
[1769211833839,0.14773389,2955.9,2954.3,0.13885083]
[1769211834149,1.19726044,2955.8,2954.3,0.13885083]
[1769211834350,0.14773389,2955.9,2954.3,0.13885083]
[1769211834549,1.19677159,2955.8,2954.3,0.13885083]
[1769211834750,0.14773389,2955.9,2954.3,0.13885083]
[1769211835044,1.19677207,2955.8,2954.3,0.13885083]
[1769211835250,0.14773389,2955.9,2954.3,0.13885083]
[1769211835551,1.19644801,2955.8,2954.3,0.13885083]
[1769211835755,0.14773389,2955.9,2954.3,0.13885083]
[1769211835951,1.19636971,2955.8,2954.3,0.13885083]
[1769211836153,0.14773389,2955.9,2954.3,0.13885083]
[1769211836449,1.19764893,2955.8,2954.3,0.13885083]
[1769211836656,0.14773389,2955.9,2954.3,0.13885083]
[1769211836952,1.1975677,2955.8,2954.3,0.13885083]
[1769211837152,0.14773389,2955.9,2954.3,0.13885083]
[1769211837353,1.19730739,2955.8,2954.3,0.13885083]
[1769211837553,0.14773389,2955.9,2954.3,0.13885083]
[1769211837753,1.19721352,2955.8,2954.3,0.13885083]
[1769211838054,0.14773389,2955.9,2954.3,0.13885083]
[1769211838256,0.30742589,2955.8,2954.3,0.13885083]
[1769211838455,0.14773389,2955.9,2954.3,0.13885083]
[1769211838656,0.30736375,2955.8,2954.3,0.13885083]
[1769211838952,0.14773389,2955.9,2954.3,0.13885083]
[1769211839156,0.30736375,2955.8,2954.3,0.13885083]
[1769211839351,0.14773389,2955.9,2954.3,0.13885083]
[1769211841152,0.88948508,2955.6,2954.3,0.13885083]
[1769211845064,0.88948508,2955.6,2954.2,0.16946]
[1769211847366,1.05886508,2955.6,2953.9,0.15171436]
[1769211854272,0.30734362,2955.5,2953.9,0.15171436]
[1769211854465,1.05886508,2955.6,2953.9,0.15171436]
[1769211854771,0.30734362,2955.5,2953.9,0.15171436]
[1769211854975,1.05886508,2955.6,2953.9,0.15171436]
[1769211855275,0.3073435,2955.5,2953.9,0.15171436]
[1769211855470,1.05886508,2955.6,2953.9,0.15171436]
[1769211855672,0.307444,2955.5,2953.9,0.15171436]
[1769211855970,1.05886508,2955.6,2953.9,0.15171436]
[1769211856167,1.19736161,2955.5,2953.9,0.15171436]
[1769211856364,1.05886508,2955.6,2953.9,0.15171436]
[1769211856571,1.19751094,2955.5,2953.9,0.15171436]
[1769211856772,1.05886508,2955.6,2953.9,0.15171436]
[1769211856974,1.19750986,2955.5,2953.9,0.15171436]
[1769211857183,1.05886508,2955.6,2953.9,0.15171436]
[1769211857472,1.19795168,2955.5,2953.9,0.15171436]
[1769211857668,0.30757933,2955.4,2953.9,0.15171436]
[1769211857868,1.05886508,2955.6,2953.9,0.15171436]
[1769211858064,1.19810744,2955.5,2953.9,0.15171436]
[1769211858268,1.19810744,2955.4,2953.9,0.15171436]
[1769211858467,1.05886508,2955.6,2953.9,0.15171436]
[1769211858665,1.19891148,2955.5,2953.9,0.15171436]
[1769211858867,1.19891148,2955.4,2953.9,0.15171436]
[1769211859069,1.05886508,2955.6,2953.9,0.15171436]
[1769211859275,1.19952193,2955.5,2953.9,0.15171436]
[1769211859472,1.19952193,2955.4,2953.9,0.15171436]
[1769211859668,0.30796059,2955.3,2953.9,0.15171436]
[1769211859868,1.05886508,2955.6,2953.9,0.15171436]
[1769211860068,1.19978949,2955.5,2953.9,0.15171436]
[1769211860268,1.19978949,2955.4,2953.9,0.15171436]
[1769211860468,1.19978949,2955.3,2953.9,0.15171436]
[1769211860669,1.05886508,2955.6,2953.9,0.15171436]
[1769211860871,1.20021389,2955.5,2953.9,0.15171436]
[1769211861070,1.20021389,2955.4,2953.9,0.15171436]
[1769211861270,1.20021389,2955.3,2953.9,0.15171436]
[1769211861471,0.30824054,2955.2,2953.9,0.15171436]
[1769211861776,1.05886508,2955.6,2953.9,0.15171436]
[1769211861973,1.20026317,2955.5,2953.9,0.15171436]
[1769211862174,1.20026317,2955.4,2953.9,0.15171436]
[1769211862375,1.20026317,2955.3,2953.9,0.15171436]
[1769211862572,0.3082539,2955.2,2953.9,0.15171436]
[1769211862771,1.05886508,2955.6,2953.9,0.15171436]
[1769211862967,1.20033715,2955.5,2953.9,0.15171436]
[1769211863176,1.20033715,2955.4,2953.9,0.15171436]
[1769211863375,1.20033715,2955.3,2953.9,0.15171436]
[1769211863675,0.30827384,2955.2,2953.9,0.15171436]
[1769211863877,1.05886508,2955.6,2953.9,0.15171436]
[1769211864177,1.20042871,2955.5,2953.9,0.15171436]
[1769211864376,1.20042871,2955.4,2953.9,0.15171436]
[1769211864571,1.20042871,2955.3,2953.9,0.15171436]
[1769211864773,0.30829795,2955.2,2953.9,0.15171436]
[1769211864977,1.05886508,2955.6,2953.9,0.15171436]
[1769211865275,1.20052,2955.5,2953.9,0.15171436]
[1769211865468,1.20052,2955.4,2953.9,0.15171436]
[1769211865669,1.20052,2955.3,2953.9,0.15171436]
[1769211865866,0.30831122,2955.2,2953.9,0.15171436]
[1769211866078,1.05886508,2955.6,2953.9,0.15171436]
[1769211866276,1.19864936,2955.5,2953.9,0.15171436]
[1769211866477,1.19864936,2955.4,2953.9,0.15171436]
[1769211866677,1.19864936,2955.3,2953.9,0.15171436]
[1769211866978,0.30832927,2955.2,2953.9,0.15171436]
[1769211867180,1.05886508,2955.6,2953.9,0.15171436]
[1769211867371,1.19967551,2955.5,2953.9,0.15171436]
[1769211867576,1.19967551,2955.4,2953.9,0.15171436]
[1769211867775,1.19967551,2955.3,2953.9,0.15171436]
[1769211868081,1.19967551,2955.2,2953.9,0.15171436]
[1769211868278,1.05886508,2955.6,2953.9,0.15171436]
[1769211868482,1.19985576,2955.5,2953.9,0.15171436]
[1769211868680,1.19985576,2955.4,2953.9,0.15171436]
[1769211868880,1.19985576,2955.3,2953.9,0.15171436]
[1769211869081,1.19985576,2955.2,2953.9,0.15171436]
[1769211869282,1.05886508,2955.6,2953.9,0.15171436]
[1769211869484,1.20002154,2955.5,2953.9,0.15171436]
[1769211869673,1.20002154,2955.4,2953.9,0.15171436]
[1769211869874,0.88948508,2955.2,2953.9,0.15171436]
[1769211870078,0.30870621,2955.1,2953.9,0.15171436]
[1769211870884,0.89044096,2954.8,2953.9,0.15171436]
[1769211898901,0.89044096,2954.8,2954.1,0.00507468]
[1769211900197,0.89044096,2954.8,2954.1,0.0005574]
[1769211900403,0.89044096,2954.5,2954.1,0.0005574]
[1769211900603,0.89044096,2954.5,2953.7,0.00242429]
[1769211901106,0.89044096,2954.3,2953.7,0.00242429]
[1769211901398,0.89044096,2954.3,2953.1,4.26471306]
[1769211901399,0.89044096,2954.1,2953.2,0.15156718]
[1769211901599,0.00411346,2954.3,2953.2,0.15156718]
[1769211901798,0.89455442,2954.3,2953.4,0.00507468]
[1769211902405,0.89455442,2954.3,2953.4,0.00875015]
[1769211903402,0.89044096,2954.1,2953.4,0.00875015]
[1769211903999,0.89044096,2954.1,2952.8,0.14936555]
[1769211904201,0.89044096,2953.9,2952.8,0.14936555]
[1769211905103,0.89044096,2953.9,2952.8,0.15270666]
[1769211905303,0.89044096,2954.1,2952.9,0.15168886]
[1769211932845,0.00411346,2954.3,2952.9,0.15168886]
[1769211933046,1.20333626,2954.2,2952.9,0.15168886]
[1769211933244,1.20333626,2954.1,2952.9,0.15168886]
[1769211933446,0.00411346,2954.3,2952.9,0.15168886]
[1769211933646,1.20341779,2954.2,2952.9,0.15168886]
[1769211933845,1.20341779,2954.1,2952.9,0.15168886]
[1769211934047,0.00411346,2954.3,2952.9,0.15168886]
[1769211934341,1.2034177,2954.2,2952.8,3.21004453]
[1769211934647,1.2034177,2954.1,2952.8,3.21004453]
[1769211934848,0.30940601,2954.0,2952.8,3.21004453]
[1769211935044,0.00411346,2954.3,2952.8,3.21004453]
[1769211935236,1.20341029,2954.2,2952.8,3.21004453]
[1769211935440,1.20341029,2954.1,2952.8,3.21004453]
[1769211935649,0.30940424,2954.0,2952.8,3.21004453]
[1769211935847,0.00411346,2954.3,2952.8,3.21004453]
[1769211936047,1.2034607,2954.2,2952.8,3.21004453]
[1769211936351,1.2034607,2954.1,2952.8,3.21004453]
[1769211936553,0.30941806,2954.0,2952.8,3.21004453]
[1769211936744,0.00411346,2954.3,2952.8,3.21004453]
[1769211937049,1.20362512,2954.2,2952.8,3.21004453]
[1769211937245,1.20362512,2954.1,2952.8,3.36207966]
[1769211937442,0.30958008,2954.0,2952.8,3.36207966]
[1769211937638,0.00411346,2954.3,2952.8,3.36207966]
[1769211937842,1.20363403,2954.2,2952.8,3.36207966]
[1769211938049,1.20363403,2954.1,2952.8,3.36207966]
[1769211938348,1.20360944,2954.0,2952.8,0.32491624]
[1769211938550,0.30958254,2953.9,2952.8,0.32491624]
[1769211938750,0.89090189,2954.1,2952.8,0.32491624]
[1769211938949,1.20359276,2954.0,2952.8,0.32491624]
[1769211939154,0.30957318,2953.9,2952.8,0.32491624]
[1769211939452,0.89090189,2954.1,2952.8,0.32491624]
[1769211939652,1.20342429,2954.0,2952.8,0.32491624]
[1769211939853,0.30952994,2953.9,2952.8,0.32491624]
[1769211940153,0.89090189,2954.1,2952.8,0.32491624]
[1769211940451,1.20333248,2954.0,2952.8,0.32491624]
[1769211940651,0.30950637,2953.9,2952.8,0.32491624]
[1769211940949,0.89090189,2954.1,2952.8,0.32491624]
[1769211941149,1.20286041,2954.0,2952.8,0.32491624]
[1769211941345,0.89090189,2954.1,2952.8,0.32491624]
[1769211941551,1.20245005,2954.0,2952.8,0.32491624]
[1769211941747,0.89090189,2954.1,2952.8,0.32491624]
[1769211942051,1.20236752,2954.0,2952.8,0.32491624]
[1769211942248,0.89090189,2954.1,2952.8,0.32491624]
[1769211942450,1.20222713,2954.0,2952.8,0.32491624]
[1769211942651,0.89090189,2954.1,2952.8,0.32491624]
[1769211942853,1.20219383,2954.0,2952.8,0.32491624]
[1769211943151,0.89090189,2954.1,2952.8,0.32491624]
[1769211943352,1.20214197,2954.0,2952.8,0.32491624]
[1769211943543,0.30920153,2953.9,2952.8,0.32491624]
[1769211943747,0.89090189,2954.1,2952.8,0.15537624]